Cogmind - Beta 17 @@@ ROGUE MODE // 2026.08.10 @ 23:12:48 Player: cccfinch Result: Destroyed by X-57 Shotgunner with High-powered Shotgun Performance ------------- Evolutions (3) 1500 Regions Visited (6) 1200 Robots Destroyed (39) 195 Value Destroyed (1333) 1333 Prototype IDs (7) 140 Alien Tech Used (0) 0 Bonus (500) 500 TOTAL SCORE: 4868 Bonus ------- Entered DSFs 500 Cogmind --------- Core Integrity 0/700 Matter 102/300 Energy 76/100 System Corruption 7% Temperature Cool (0) Movement Core (1350) Ox26 Location -7/DSF Parts ------- > --- POWER (2) -------- (None) > --- PROPULSION (4) --- (None) > --- UTILITY (4) ------ Huge Storage Unit Launcher Guidance Computer > --- WEAPON (3) ------- (None) > --- INVENTORY (25) --- Light Treads Compact Wheel Airjet Thermal Generator Heat Sink Heat Sink Large Storage Unit Weight Redist. System Trap Scanner Experimental Sensor Array Armor Integrity Analyzer ECM Suite Light Armor Plating Heavy EM Pulse Gun Improved EM Shotgun Beam Rifle Improved Medium Laser Light Assault Rifle Enhanced Autogun Gauss Rifle Gauss Rifle Proton Missile Launcher Peak State ------------ > --- POWER ------------ Improved Ion Engine Improved Ion Engine > --- PROPULSION ------- Light Treads Aluminum Leg Carbon-fiber Leg Carbon-fiber Leg > --- UTILITY ---------- Huge Storage Unit Advanced Weight Redist. System Launcher Guidance Computer Hardlight Generator > --- WEAPON ----------- Gauss Rifle Gauss Rifle Mini Grenade Launcher > --- INVENTORY -------- Aluminum Leg Compact Wheel Airjet Thermal Generator Heat Sink Heat Sink Large Storage Unit Weight Redist. System Trap Scanner Experimental Sensor Array Launcher Guidance Computer Armor Integrity Analyzer ECM Suite Light Armor Plating Heavy EM Pulse Gun Improved EM Shotgun Beam Rifle Improved Medium Laser Light Assault Rifle Enhanced Autogun Proton Missile Launcher Proton Missile Launcher Proton Missile Launcher [Rating: 39] Favorites ----------- Power Light Ion Engine Engine Light Ion Engine Propulsion Aluminum Leg Treads Light Treads Leg Aluminum Leg Wheel Compact Wheel Hover Unit Airjet Utility Huge Storage Unit Device Seismic Detector Storage Huge Storage Unit Processor Launcher Guidance Computer Protection Light Armor Plating Weapon Assault Rifle Energy Gun Small Laser Energy Cannon Particle Cannon Ballistic Gun Assault Rifle Launcher Proton Missile Launcher Build | -11 -10 -10 -9 -8 -7 -7 ------- Run | Yrd Mat Min Mat Mat Fac DSF Slots Evolved 6 | . . . 2 2 2 . Power 1 | . . . . . 1 . Propulsion 2 | . . . 1 1 . . Utility 2 | . . . . 1 1 . Weapon 1 | . . . 1 . . . Parts Attached 65 | 6 9 5 20 20 2 3 Power 9 | 1 1 2 4 . 1 . Engine 9 | 1 1 2 4 . 1 . Core . | . . . . . . . Reactor . | . . . . . . . Propulsion 18 | 2 4 . 4 7 . 1 Treads 3 | . 2 . . 1 . . Leg 11 | 2 2 . 4 2 . 1 Wheel 3 | . . . . 3 . . Hover 1 | . . . . 1 . . Flight . | . . . . . . . Utility 13 | 1 3 2 1 4 1 1 Device 5 | . 1 1 . 2 1 . Storage 5 | 1 2 1 1 . . . Processor 2 | . . . . 1 . 1 Hackware . | . . . . . . . Protection 1 | . . . . 1 . . Artifact . | . . . . . . . Weapon 25 | 2 1 1 11 9 . 1 Energy Gun 10 | 1 1 . 7 1 . . Energy Cannon 2 | . . . 2 . . . Ballistic Gun 7 | 1 . 1 2 3 . . Ballistic Cannon . | . . . . . . . Launcher 6 | . . . . 5 . 1 Special Weapon . | . . . . . . . Impact Weapon . | . . . . . . . Slashing Weapon . | . . . . . . . Piercing Weapon . | . . . . . . . Special Melee Weapon . | . . . . . . . Unidentified Prototypes 7 | . . 1 4 2 . . Corrupted Parts 3 | . . . . 2 . 1 System Corruption 28 | . . . . 21 . 7 Parts Lost 18 | . . . 3 1 . 14 Power 2 | . . . . . . 2 Propulsion 10 | . . . 3 1 . 6 Utility 3 | . . . . . . 3 Weapon 3 | . . . . . . 3 Highest Loss Streak 8 | . . . 2 1 . 8 To Critical Strikes . | . . . . . . . Average Backups 17 | 3 12 15 17 22 22 22 Power 2 | . 1 2 2 2 . . Propulsion 4 | 2 6 4 3 2 4 3 Utility 6 | . 3 5 6 9 10 10 Weapon 4 | . 1 2 4 7 8 9 Tool/Special . | . . . . . . . Unused Backups 17 | . 1 . 5 1 . 10 Power 2 | . . . 2 . . . Propulsion 1 | . . . . 1 . . Utility 9 | . 1 . 1 . . 7 Weapon 5 | . . . 2 . . 3 Tool/Special . | . . . . . . . Average Slot Usage (%) 95 | . 95 99 98 94 99 75 Engine 11 | . 14 14 11 9 15 10 Treads 1 | . 5 . . 4 . . Leg 21 | . 22 28 31 5 15 19 Wheel 5 | . . . . 17 15 1 Hover 1 | . . . . 3 . . Device 11 | . 10 13 11 10 14 9 Storage 11 | . 14 14 11 9 7 7 Processor 2 | . . . . 6 7 4 Energy Gun 10 | . 14 13 15 5 . . Ballistic Gun 13 | . 14 14 14 13 15 4 Launcher 3 | . . . . 7 7 15 Peak Build Rating 39 | 6 8 17 19 36 37 39 Average Rating 19 | 5 7 14 14 29 36 30 On Entrance 16 | . 6 8 16 15 32 37 Avg Prop Armor Cover (%) 10 | . . . 6 11 11 12 Naked Turns . | . . . . . . . Heaviest Build 114 | 12 87 47 97 107 108 114 Greatest Support 59 | 20 40 20 30 50 35 59 Greatest Overweight (x) 6 | 2 2 2 5 5 3 6 Average Overweight (x) 1 | . . 1 1 3 3 2 Largest Inventory Capacity 25 | 8 25 20 25 25 25 25 Average Capacity 20 | 7 14 17 21 25 25 25 Most Carried 25 | 6 15 20 20 25 24 24 Average Carried 17 | 3 12 15 17 22 22 22 Final Capacity 25 | 8 15 20 25 25 25 25 Final Carried 25 | 6 13 19 15 25 23 22 Class Distribution -------------------- 47% | Mutant 23% | Gunner 21% | Scavenger-Gunner 5% | Tank Dominant Class ---------------- Mutant | -10/Materials Mutant | -10/Mines Scavenger-Gunner | -9/Materials Gunner | -8/Materials Scavenger-Gunner | -7/Factory Scavenger-Gunner | -7/DSF Resources | -11 -10 -10 -9 -8 -7 -7 ----------- Run | Yrd Mat Min Mat Mat Fac DSF Matter Collected 1250 | 189 138 84 419 256 . 164 Remotely . | . . . . . . . Salvage Created 1686 | . 49 91 713 378 . 455 Parts 97 | . 2 14 33 19 . 29 Haulers Intercepted 1 | . . . 1 . . . Recyclers Shooed 1 | . . . 1 . . . Parts Field Recycled . | . . . . . . . Retrieved Matter . | . . . . . . . Parts Self-Destructed . | . . . . . . . Prevented . | . . . . . . . Parts Restored . | . . . . . . . Kills | -11 -10 -10 -9 -8 -7 -7 ------- Run | Yrd Mat Min Mat Mat Fac DSF Combat Hostiles Destroyed 32 | . 1 6 11 7 . 7 Melee 1 | . . . . . . 1 Guns 21 | . 1 6 10 3 . 1 Cannons 1 | . . . 1 . . . AOE 8 | . . . . 3 . 5 Classes Destroyed 10 | . 2 1 4 2 . 1 Worker 4 | . 1 . 1 2 . . Builder 1 | . . . . 1 . . Hauler 1 | . . . 1 . . . Recycler 1 | . . . 1 . . . Swarmer 7 | . . 6 . . . 1 Grunt 13 | . 1 . 7 3 . 2 Duelist 1 | . . . 1 . . . Sentry 6 | . . . 3 3 . . Specialist 3 | . . . . . . 3 Hunter 2 | . . . . 1 . 1 Best Kill Streak 5 | . 2 3 3 3 . 5 Combat Bots Only 5 | . 1 3 3 3 . 5 Max Kills in Single Turn 2 | . 2 2 2 2 . 2 Gunslinging 1 | . . 1 . . . . Exploded 2 | . . . . 2 . 2 Melee 1 | . . . . . . 1 Uniques/NPCs Destroyed . | . . . . . . . Combat | -11 -10 -10 -9 -8 -7 -7 -------- Run | Yrd Mat Min Mat Mat Fac DSF Hostile Shots Fired 271 | . 1 26 59 49 . 136 Missed 75 | . . 8 9 12 . 46 Hits 196 | . 1 18 50 37 . 90 Projectile 196 | . 1 18 50 37 . 90 Critical Strikes 5 | . . . 1 . . 4 Damage Taken 3372 | . 163 150 788 476 . 1795 Core 1028 | . 49 25 165 89 . 700 Absorbed by Shields 120 | . . . . 44 . 76 Regen/Repaired (Parts) 48 | . . . . . 48 . Core Remaining (%) 77 | 100 . 70 58 83 . . Volleys Fired 84 | . 1 8 41 20 . 14 Largest 3 | . 2 2 3 3 . 3 Hottest 164 | . 60 60 147 164 . 108 Shots Fired 213 | . 2 16 110 53 . 32 Gun 177 | . 2 16 101 42 . 16 Cannon 9 | . . . 9 . . . Launcher 27 | . . . . 11 . 16 Special . | . . . . . . . Kinetic 106 | . 1 8 58 23 . 16 Thermal 69 | . . 8 45 16 . . Explosive 10 | . . . . 6 . 4 Electromagnetic 28 | . 1 . 7 8 . 12 Robot Hit Streak 15 | . 2 5 15 8 . 7 Robot Miss Streak 4 | . . 3 3 4 . 2 Penetration Max 1 | . . . . 1 . . Secondary Targets 4 | . . 1 3 . . . Max Gunslinging Chain 1 | . . 1 1 . . . Shots Hit Robots 138 | . 2 8 78 31 . 19 Core Hits 71 | . 2 6 30 17 . 16 Critical Kills . | . . . . . . . Critical Parts Destroyed . | . . . . . . . Critical Strikes 3 | . . . 1 2 . . Burn 3 | . . . 1 2 . . Melee Attacks . | . . . . . . . Impact . | . . . . . . . Slashing . | . . . . . . . Piercing . | . . . . . . . Sneak Attacks . | . . . . . . . Combat Hostiles . | . . . . . . . Follow-up Attacks . | . . . . . . . Damage Inflicted 3069 | . 86 105 1065 1005 . 808 Guns 1737 | . 27 105 921 423 . 261 Cannons 144 | . . . 144 . . . Explosions 1158 | . 59 . . 582 . 517 Melee . | . . . . . . . Ramming 30 | . . . . . . 30 Kinetic 1061 | . 15 57 519 209 . 261 Thermal 795 | . 22 48 489 167 . 69 Explosive 555 | . 37 . . 406 . 112 Electromagnetic 628 | . 12 . 57 223 . 336 Impact . | . . . . . . . Slashing . | . . . . . . . Piercing . | . . . . . . . Highest Corruption 21 | . . . . 21 . 7 Average Corruption 14 | . . . . 20 . 7 Corruption Purged . | . . . . . . . Corruption Blocked . | . . . . . . . Effects 11 | . . . . 6 . 5 Message Errors 4 | . . . . 2 . 2 Matter Fused 2 | . . . . 1 . 1 Data Loss (minor) 3 | . . . . 2 . 1 Data Loss (major) 1 | . . . . 1 . . Alerts 1 | . . . . . . 1 Overload Shots . | . . . . . . . Overflow Damage 12 | . . . . 12 . . Projectiles . | . . . . . . . Explosions 12 | . . . . 12 . . Melee . | . . . . . . . Knockbacks . | . . . . . . . Impact . | . . . . . . . Kinetic . | . . . . . . . Secondary . | . . . . . . . Self-Inflicted Damage 183 | . 152 . . 5 . 26 Shots 6 | . 2 . . 1 . 3 Rammed 8 | . . . . . . 8 Targets Rammed 9 | . . . . . . 9 Kicked 1 | . . . . . . 1 Crushed . | . . . . . . . Highest Temperature 603 | . 12 . 603 333 . . Average Temperature 175 | . 12 . 208 105 . . Received Heat Transfer 630 | . 6 . 351 183 . 90 Effects 22 | . . . 20 2 . . Shutdowns 3 | . . . 2 1 . . Energy Bleed 2 | . . . 1 1 . . Interference 4 | . . . 4 . . . Short Circuit 2 | . . . 2 . . . Damage (minor) 2 | . . . 2 . . . Damage (major) 7 | . . . 7 . . . Damage (core) 2 | . . . 2 . . . Siege Activations . | . . . . . . . Martial Activations . | . . . . . . . Shielding Activations . | . . . . . . . Robots Disrupted . | . . . . . . . Combat Hostiles . | . . . . . . . Robots Corrupted 1 | . . . . 1 . . Combat Hostiles 1 | . . . . 1 . . Parts Fried 1 | . . . . 1 . . Impact Corruptions . | . . . . . . . Robots Melted . | . . . . . . . Combat Hostiles . | . . . . . . . Parts Melted 1 | . . . 1 . . . Heat Transferred 1932 | . 50 100 1164 518 . 100 Parts Sabotaged . | . . . . . . . Parts Stolen . | . . . . . . . Parts Stripped . | . . . . . . . Power Chain Reactions 6 | . 1 . . 1 . 4 Alert | -11 -10 -10 -9 -8 -7 -7 ------- Run | Yrd Mat Min Mat Mat Fac DSF Maximum Alert Level 1 | . . . . . . 1 Low Security (%) 96 | 100 100 100 100 100 100 58 Level 1 3 | . . . . . . 41 Level 2 . | . . . . . . . Level 3 . | . . . . . . . Level 4 . | . . . . . . . Level 5 . | . . . . . . . High Security . | . . . . . . . Max Security . | . . . . . . . Peak Influence 247 | . 73 108 173 122 28 247 Initial 37 | . . . 37 11 2 . Average 43 | . 11 10 84 47 8 127 Influence Increases 1401 | . 73 140 383 412 26 367 Destroy 0b10 Robot/C 640 | . 20 120 220 140 . 140 Destroy 0b10 Robot/NC 45 | . 5 . 15 15 . 10 Destroy Leader 192 | . 10 20 72 50 . 40 Successful Hack 34 | . . . . 8 26 . Disable Machine 135 | . 15 . . 120 . . Destroy Structure 100 | . 23 . 1 49 . 27 Lose Combat Pursuer 255 | . . . 75 30 . 150 Influence Decreases 1164 | . 73 44 451 434 32 130 Entered New Map 80 | . . . 59 17 4 . Time Decay 914 | . 73 44 362 407 28 . Lost Part 170 | . . . 30 10 . 130 Squads Dispatched 7 | . 2 . 2 . . 3 Investigation 2 | . 1 . 1 . . . Extermination . | . . . . . . . Reinforcement 5 | . 1 . 1 . . 3 Assault . | . . . . . . . Garrison . | . . . . . . . Intercept . | . . . . . . . Searches Triggered . | . . . . . . . Construction Impeded . | . . . . . . . Haulers Reinforced . | . . . . . . . Active Scanning Responses . | . . . . . . . Cargo Convoy Interrupts . | . . . . . . . Stealth | -11 -10 -10 -9 -8 -7 -7 --------- Run | Yrd Mat Min Mat Mat Fac DSF Distress Signals 5 | . 1 . 3 1 . . Communications Jammed . | . . . . . . . Distress Signals . | . . . . . . . Times Spotted 56 | . 2 6 15 15 . 18 Peak Tracking Total 9 | . 1 3 9 4 . 5 Tactical Retreats 10 | . . . 2 1 . 7 Traps | -11 -10 -10 -9 -8 -7 -7 ------- Run | Yrd Mat Min Mat Mat Fac DSF Traps Triggered 1 | . . . . . . 1 Indirectly . | . . . . . . . Trap Hack Attempts . | . . . . . . . Triggered . | . . . . . . . Disarmed . | . . . . . . . Reprogrammed . | . . . . . . . Reused . | . . . . . . . Traps Extracted . | . . . . . . . Installed . | . . . . . . . Triggered . | . . . . . . . Machines | -11 -10 -10 -9 -8 -7 -7 ---------- Run | Yrd Mat Min Mat Mat Fac DSF Machines Disabled 9 | . 1 . . 8 . . Max in Single Turn 2 | . 1 . . 2 . . Machines Repaired . | . . . . . . . Machines Dismantled . | . . . . . . . Machines Sabotaged . | . . . . . . . Overloaded Fab Kills . | . . . . . . . Hacking | -11 -10 -10 -9 -8 -7 -7 --------- Run | Yrd Mat Min Mat Mat Fac DSF Machines Accessed 9 | . 1 . 3 3 2 . Terminals 4 | . . . 1 2 1 . Fabricators . | . . . . . . . Repair Stations 1 | . . . . . 1 . Recycling Units 2 | . 1 . 1 . . . Scanalyzers 2 | . . . 1 1 . . Garrison Access . | . . . . . . . Total Hacks 19 | . 1 . 8 7 3 . Successful 11 | . 1 . 3 4 3 . Failed 7 | . . . 4 3 . . Catastrophic 1 | . . . 1 . . . Database Lockouts 1 | . . . 1 . . . Manual 2 | . . . 1 1 . . Terminals 6 | . . . 1 4 1 . Fabricators . | . . . . . . . Repair Stations 2 | . . . . . 2 . Recycling Units 4 | . 1 . 3 . . . Scanalyzers 7 | . . . 4 3 . . Garrison Access . | . . . . . . . Terminal Hacks 3 | . . . . 2 1 . Record 1 | . . . . 1 . . Robot Analysis 1 | . . . . 1 . . Open DSF 1 | . . . . . 1 . Fabricator Hacks . | . . . . . . . Repair Station Hacks 2 | . . . . . 2 . Scan Component 1 | . . . . . 1 . Repair 1 | . . . . . 1 . Recycling Unit Hacks 1 | . 1 . . . . . Retrieve Matter 1 | . 1 . . . . . Scanalyzer 5 | . . . 3 2 . . Retrieve Study 5 | . . . 3 2 . . Garrison Access Hacks . | . . . . . . . Unauthorized Hacks . | . . . . . . . Terminals . | . . . . . . . Fabricators . | . . . . . . . Repair Stations . | . . . . . . . Recycling Units . | . . . . . . . Scanalyzers . | . . . . . . . Garrison Access . | . . . . . . . Data Cores Recovered . | . . . . . . . Used . | . . . . . . . Hacking Detections 2 | . . . 1 . 1 . Full Trace Events 1 | . . . 1 . . . Feedback Events . | . . . . . . . Feedback Blocked . | . . . . . . . Robot Schematics Acquired . | . . . . . . . Robots Built . | . . . . . . . Authchips . | . . . . . . . Time . | . . . . . . . Total Robot Build Rating . | . . . . . . . Part Schematics Acquired . | . . . . . . . Parts Built . | . . . . . . . Authchips . | . . . . . . . Time . | . . . . . . . Total Part Build Rating . | . . . . . . . Part Studies Acquired 5 | . . . 3 2 . . Parts Repaired 1 | . . . . . 1 . Time 22 | . . . . . 22 . Parts Recycled . | . . . . . . . Recycled Matter . | . . . . . . . Retrieved Matter 108 | . 108 . . . . . Retrieved Components . | . . . . . . . Parts Scanalyzed . | . . . . . . . Part Schematics Acquired . | . . . . . . . Parts Damaged . | . . . . . . . Bothacking | -11 -10 -10 -9 -8 -7 -7 ------------ Run | Yrd Mat Min Mat Mat Fac DSF Used RIF Installer . | . . . . . . . Robots Hacked . | . . . . . . . Non-combat . | . . . . . . . Combat . | . . . . . . . Robot Hacks Applied . | . . . . . . . Relay Couplers Released . | . . . . . . . Fabnet Peak Effective % . | . . . . . . . Robots Rewired . | . . . . . . . Allies Hacked . | . . . . . . . Hacks Repelled . | . . . . . . . Allies | -11 -10 -10 -9 -8 -7 -7 -------- Run | Yrd Mat Min Mat Mat Fac DSF Total Allies . | . . . . . . . Largest Group . | . . . . . . . Highest-Rated Group . | . . . . . . . Highest-Rated Ally . | . . . . . . . Total Orders . | . . . . . . . Ally Attacks . | . . . . . . . Total Damage . | . . . . . . . Kills . | . . . . . . . Allies Corrupted . | . . . . . . . Allies Melted . | . . . . . . . Intel | -11 -10 -10 -9 -8 -7 -7 ------- Run | Yrd Mat Min Mat Mat Fac DSF Active Infowar (turns) 2734 | . 352 1400 826 156 . . Sensors 1226 | . . 1075 1 150 . . Seismic 1644 | . 352 325 825 142 . . Robot Analysis Total 1 | . . . . 1 . . Derelict Logs Recovered 2 | . . 2 . . . . Drone Launches . | . . . . . . . Drone Recoveries . | . . . . . . . Exploration | -11 -10 -10 -9 -8 -7 -7 ------------- Run | Yrd Mat Min Mat Mat Fac DSF Turns Passed 4337 | 92 471 1401 827 1132 78 336 Spaces Moved 1887 | 65 236 630 280 542 43 91 Core 12 | 11 . . . . . 1 Treads 46 | . 46 . . . . . Legs 1266 | 54 190 630 280 33 . 79 Wheels 563 | . . . . 509 43 11 Hover . | . . . . . . . Flight . | . . . . . . . Fastest Speed 50 | 50 120 190 175 113 125 125 Average Speed 186 | 119 182 216 229 136 125 222 Slowest Speed 455 | 150 320 260 455 455 125 350 Overloaded Moves . | . . . . . . . Propulsion Burnouts . | . . . . . . . Robots Hopped . | . . . . . . . Potential Cave-ins . | . . . . . . . Cave-ins Triggered . | . . . . . . . Exploration Rate (%) 35 | 4 40 99 25 29 1 49 Regions Visited 6 Branch Regions 1 Pre-discovered Areas . | . . . . . . . Known Exits Taken 2 | . . . 1 . 1 . Unknown Exits Taken 4 | 1 1 1 . 1 . . Scrap Searched 1 | . . 1 . . . . Spaces Dug . | . . . . . . . Terrain Destroyed 130 | . 31 . . 70 . 29 Melee . | . . . . . . . Projectile . | . . . . . . . AOE 130 | . 31 . . 70 . 29 Terrain Rammed . | . . . . . . . Walls Destroyed . | . . . . . . . Machines Disabled . | . . . . . . . Actions | -11 -10 -10 -9 -8 -7 -7 --------- Run | Yrd Mat Min Mat Mat Fac DSF Total 2519 | 76 275 654 396 888 67 163 Wait 355 | . 10 3 18 263 22 39 Move 1881 | 64 235 629 279 541 42 91 Hop . | . . . . . . . Pick Up 50 | 6 8 4 10 20 1 1 Fast Attach 23 | 6 5 2 4 5 . 1 Attach 18 | . . . 7 5 2 4 Detach 13 | . 4 1 2 4 . 2 Swap 45 | . 5 4 16 18 . 2 Drop 40 | . 6 3 19 12 . . Fire 84 | . 1 8 41 20 . 14 Melee . | . . . . . . . Ram 8 | . . . . . . 8 Kick 1 | . . . . . . 1 Crush . | . . . . . . . Escape Stasis . | . . . . . . . Rewire 1 | . 1 . . . . . Trap . | . . . . . . . Miscellaneous . | . . . . . . . Route ------- -11/Scrapyard -10/Materials -10/Mines (discovered 2 exits: *Mat x2) -9/Materials (discovered 2 exits: *Mat x2) -8/Materials -7/Factory (discovered 2 exits: Sto / DSF) -7/DSF History --------- Turn | Location | Event 13 | -11/Scrapyard | Discovered new exit (range 15) 93 | -11/Scrapyard | Entered Materials 94 | -10/Materials | Met a group of wandering Federalists 317 | -10/Materials | Build established: Mutant 536 | -10/Materials | Discovered new exit (range 12) 564 | -10/Materials | Entered Mines 590 | -10/Mines | Met a Derelict bent on vengeance 720 | -10/Mines | Discovered new exit (range 15) 886 | -10/Mines | Found a damaged Exp. Sensor Array with a note attached 890 | -10/Mines | Found Prototype Device 890 | -10/Mines | Identified Exp. Sensor Array 1244 | -10/Mines | Learned location of 1 exit from Materials 1890 | -10/Mines | Discovered new exit (range 10) 1965 | -10/Mines | Entered Materials 1965 | -9/Materials | Evolved 2 slots: Propulsion x1, Weapon x1 1966 | -9/Materials | Identified exit to Materials 2113 | -9/Materials | Central database locked down 2407 | -9/Materials | Build established: Gunner 2692 | -9/Materials | Discovered exit to Materials (range 12) 2792 | -9/Materials | Entered another Materials area 2792 | -8/Materials | Evolved 2 slots: Propulsion x1, Utility x1 3090 | -8/Materials | Discovered new exit (range 15) 3772 | -8/Materials | System corruption reached 10% 3924 | -8/Materials | Entered Factory 3924 | -7/Factory | Evolved 2 slots: Power x1, Utility x1 3925 | -7/Factory | Identified exit to Storage 3960 | -7/Factory | Repaired Proton Missile Launcher 4001 | -7/Factory | Identified exit to DSF 4002 | -7/Factory | Entered DSF 4022 | -7/DSF | Build established: Scavenger-Gunner 4068 | -7/DSF | Additional patrols routed to DSF 4151 | -7/DSF | Lost 3 parts (1n2u) 4308 | -7/DSF | Core integrity fell below 50% 4333 | -7/DSF | Core integrity fell below 20% 4338 | -7/DSF | Destroyed by X-57 Shotgunner with High-powered Shotgun Last Messages --------------- 04296_ Carbon-fiber Leg destroyed. 04296_ Kicked S-27 Virus. 04299_ Aluminum Leg+ destroyed. 04300_ Proton Missile Launcher destroyed. 04300_ Slammed into S-27 Virus. 04300_ Destabilizing: Core damaged (-35). 04304_ Slammed into S-27 Virus. 04304_ Destabilizing: Core damaged (-28). 04305_ Acquired 24 matter. 04307_ Slammed into S-27 Virus. 04308_ S-27 Virus destroyed. 04311_ Slammed into S-27 Virus. 04311_ S-27 Virus destroyed. 04311_ Launcher Guidance Computer broken. 04311_ Destabilizing: Short circuit. 04318_ Slammed into S-27 Virus. 04326_ Acquired 8 matter. 04328_ Adv. Weight Redist. System destroyed. 04328_ Slammed into S-27 Virus. 04336_ Penetrated by Slug. Map ----- +----------------------------------------------------+ | ?????????????????????????????????????????????????? | | ?????????????????????????????????????????????????? | | ?????????????????????????????????????####????????? | | ??????????????????????? ?????######?## ##???????? | | ??????????????????????? #### ## ##??????? | | ??????????????????????? ! === [[ # !!##?????? | | ?????????????????????? =% === [ ! ##????? | | ?????????????????????? %%[ [%= #????? | | ????????????????????? H = [!*[[ ##?????? | | ????????????????????? = =%! * #?????? | | ??????????????????????= !?# === ##?????? | | ??????????????????????# ??#! ! ===# #?????? | | ????????????????????### #?########## ####?????? | | ?????????????????????!! %=????????#[[ [#???????? | | ?????????????????????!!^ ^=????????#[[ [#???????? | | ??????????????????????! =????????#[[ [#???????? | | ????????????????????### ##???????### ##???????? | | ????????????????????#== ???????#[[ #???????? | | ????????????????????#== ????????#[[ #???????? | | ?????????????????????== ?########## ##???????? | | ??????????????????????# #?# # ###[ ###??????? | | ????????????????????### =### # ## ! ""###????? | | ????????????????????# x%x ! """""????? | | ????????????????????# =%*=[ ""##"????? | | ????????????????????#]]!!s= #[[[#[[## """"#??????? | | ????????????????????#]]!!@ ######### """"#??????? | | ????????????????????####%;###???????##"####??????? | | ???????????????????????####??????????#"#?????????? | | ?????????????????????????????????????#""?????????? | | ??????????????????????????????????????###????????? | | ?????????????????????????????????????????????????? | | ?????????????????????????????????????????????????? | | ?????????????????????????????????????????????????? | | ?????????????????????????????????????????????????? | | | | | | | | | | | | | | | | | | | | | | | | | | | | | | | | | +----------------------------------------------------+ Best States ------------- Heat Dissipation 34 Energy Generation 19 Energy Capacity 430 Matter Stores 300 Matter Capacity 300 Sight Range 16 Robot Scan Range 20 Terrain Scan Density 10 Additional Mass Support 9 Armor Coverage 150 Evasion (%) 55 Launcher Accuracy 20 Recoil Reduction 2 Item Schematics ----------------- None Robot Schematics ------------------ None Fabricated ------------ Nothing Repaired ---------- Proton Missile Launcher | 43% | -7/Factory Studied --------- Aluminum Leg | -9/Materials | Hacked Autogun | -9/Materials | Hacked Lgt. Ion Engine | -9/Materials | Hacked Wheel | -8/Materials | Hacked Com. Wheel | -8/Materials | Hacked Alien Tech Used ----------------- None Achievements -------------- Ghost 'Em Resistances Are Futile Challenges ------------ None Game ------ Seed SingularityMeleePlatform Manual? 0 Play Time 00:39:38 Cumulative 15.7 hours Start 2026.08.10 @ 22:12:16 End 2026.08.10 @ 23:12:48 Sessions 1 Manual Loads 0 Difficulty Rogue Special Mode None Game No. 32 Rogue 30 Adventurer 0 Explorer 2 Win Type - Total 0 Types 0/0/0/0/0/0/0/0/0/0 Lore% 11 Gallery% 19 Achievement% 14 Wizard Run 0 Options --------- Layout 1 ASCII 1 Keyboard 0 Movement Numpad Keybinds 0 Fullscreen 1 Font 24/Smallcaps Map View 50x35 Zoom Use 0% Tactical HUD 1 Map Filters NONE Filters NONE Steam 1 RUN: ec8d6eb6-6bfb-410b-a971-6bc0f8b998d8